[Event "Reykjavik Open 2022"]
[Site "Reykjavik"]
[Date "2022.04.07"]
[Round "3.27"]
[White "Thorfinnsson, Bjorn"]
[Black "De Coninck, Rafael"]
[Result "1-0"]
[ECO "D03"]
[WhiteElo "2387"]
[BlackElo "2119"]
[Annotator "TA"]
[PlyCount "31"]
[EventDate "2022.04.06"]
[EventCountry "ISL"]
[SourceTitle "playchess.com"]
[Source "ChessBase"]
[SourceQuality "1"]
[TimeControl "40/5400+30:1800+30"]

{[%evp 9,31,-6,-6,-27,-22,-26,-31,-54,-47,-52,-32,-39,-25,-26,-38,-35,-22,0,-23,-25,87,97,112,64]} 1. d4 {[%emt 0:00:05]} d5 {[%emt 0:00:15]} 2. Nf3 {[%emt 0:00:22]} Nf6 {[%emt 0:00:23]} 3. Bg5 {[%emt 0:00:10][%cal Bc1g5,Bg5h4,Bh4g3,Bg3e5][%mdl 32]} e6 {[%emt 0:02:03]} 4. e3 {[%emt 0:00:13]} Nbd7 {[%emt 0:03:11]} 5. c3 {[%emt 0:00:47]} h6 {[%emt 0:02:29][%cal Bh7h6,Bh6h5,Bh5h4][%mdl 32]} 6. Bh4 {[%emt 0:00:11] D03: 1 d4 d5 2 Nf3 Nf6 3 Bg5, including Torre Attack with early ...d5.} g5 {[%emt 0:00:44]} 7. Bg3 {[%emt 0:00:10]} Ne4 {[%emt 0:00:31] aiming for ...h5.} 8. Nbd2 {[%emt 0:00:38] [#] Black is slightly better.} h5 $146 {[%emt 0:01:00]} ({Predecessor:} 8... Nxg3 9. hxg3 g4 10. Ng1 Nf6 11. Bd3 c5 12. Ne2 Bd7 13. Nf4 Be7 14. Qe2 Qb6 {1-0 (42) Vogel,F (1837)-Kilburn,G (1902) IECC email 1999}) 9. Qc2 {[%emt 0:06:28]} h4 {[%emt 0:07:20]} 10. Be5 {[%emt 0:00:24]} f6 {[%emt 0:01:05]} 11. Nxe4 {[%emt 0:01:49]} dxe4 {[%emt 0:00:27]} 12. Qxe4 {[%emt 0:01:15] [#] Threatens to win with Qg6+.} Rh6 {[%emt 0:00:36] Inhibits Qg6+.} 13. Bxc7 $1 {[%emt 0:01:54]} Qxc7 {[%emt 0:01:05]} 14. Qxe6+ {[%emt 0:00:05]} Be7 {[%emt 0:01:26] [#]} (14... Kd8 $11 {remains equal.}) 15. Nxg5 $1 $16 {[%emt 0:01:11][%mdl 64] White threatens Qf7+ and mate. Pin. &Bianco is more active.} Nf8 {[%emt 0:02:03]} 16. Bb5+ {[%emt 0:01:39] Weighted Error Value: White=0.08 (flawless) /Black=0.17 (very precise)} (16. Qf7+ $16 Kd8 17. Qd5+ (17. Bb5 Bd7 $14) 17... Ke8 18. Bb5+ Bd7 19. Nf3) 1-0

[Event "Reykjavik Open 2022"]
[Site "Reykjavik"]
[Date "2022.04.07"]
[Round "3.28"]
[White "Fantinel, Thibault"]
[Black "Karlsson, Mikael Johann"]
[Result "1-0"]
[ECO "B31"]
[WhiteElo "2376"]
[BlackElo "2119"]
[Annotator "TA"]
[PlyCount "81"]
[EventDate "2022.04.06"]
[EventCountry "ISL"]
[SourceTitle "playchess.com"]
[Source "ChessBase"]
[SourceQuality "1"]
[TimeControl "40/5400+30:1800+30"]

{[%evp 35,81,102,101,91,106,99,109,108,113,114,138,123,133,124,157,114,172,122,128,131,134,122,127,131,156,164,418,359,377,432,440,431,402,440,415,418,5361,5110,5010,4966,2118,1998,1831,1523,1125,717,652,449]} 1. e4 {[%emt 0:00:06]} c5 {[%emt 0:00:08]} 2. Nf3 {[%emt 0:00:09]} Nc6 {[%emt 0:00:03]} 3. Bb5 {[%emt 0:00:08]} g6 {[%emt 0:00:17]} 4. O-O {[%emt 0:00:17]} Bg7 {[%emt 0:00:02]} 5. Nc3 {[%emt 0:00:33]} e5 {[%emt 0:00:53]} 6. d3 {[%emt 0:00:26]} Nge7 {[%emt 0:02:54]} 7. Bc4 {[%emt 0:00:09]} O-O {[%emt 0:01:59]} 8. a3 {[%emt 0:00:29]} d6 {[%emt 0:00:45]} 9. b4 {[%emt 0:00:45]} Bg4 {[%emt 0:02:15]} 10. bxc5 {[%emt 0:13:05]} dxc5 {[%emt 0:04:40]} 11. h3 {[%emt 0:01:39]} Bxf3 {[%emt 0:00:10]} 12. Qxf3 {[%emt 0:00:03]} Nd4 {[%emt 0:00:46]} 13. Qd1 {[%emt 0:00:21]} Qd7 {[%emt 0:00:12]} 14. a4 {[%emt 0:05:27]} Nec6 {[%emt 0:07:27]} 15. Nd5 {[%emt 0:08:07]} Kh8 {[%emt 0:05:43]} 16. a5 {[%emt 0:03:21]} Rab8 {[%emt 0:02:25]} 17. c3 {[%emt 0:03:48]} Ne6 {[%emt 0:00:45]} 18. Qb3 {[%emt 0:02:02]} Qd8 {[%emt 0:15:08]} 19. Qb5 {[%emt 0:04:14]} Qd6 {[%emt 0:07:58]} 20. Be3 {[%emt 0:06:17]} f5 {[%emt 0:00:29]} 21. f3 {[%emt 0:01:00]} f4 {[%emt 0:06:00]} 22. Bf2 {[%emt 0:00:04]} Rfd8 {[%emt 0:00:47]} 23. Rfb1 {[%emt 0:00:52]} Bf8 {[%emt 0:01:25]} 24. Qa4 {[%emt 0:01:14]} Ne7 {[%emt 0:04:23]} 25. Rb5 {[%emt 0:12:36]} Nc8 {[%emt 0:01:20]} (25... Nxd5 $16 26. exd5 Nc7) 26. Qb3 {[%emt 0:02:52]} (26. Rb3 $18) 26... Qc6 $16 {[%emt 0:00:58] [#]} 27. Qa2 $1 {[%emt 0:10:23]} Nd6 {[%emt 0:01:29]} 28. Rb2 {[%emt 0:00:04]} Nxc4 {[%emt 0:00:12]} 29. Qxc4 {[%emt 0:01:22]} Rbc8 {[%emt 0:09:07]} 30. Rab1 {[%emt 0:01:41]} Rd7 $2 {[%emt 0:00:42]} (30... Rb8 {might work better.} 31. Rb5 Bd6) 31. Nb6 $18 {[%emt 0:03:52]} Rcd8 {[%emt 0:04:33]} 32. Nxd7 {[%emt 0:00:07]} Rxd7 {[%emt 0:00:04]} 33. Rb6 {[%emt 0:04:16]} axb6 {[%emt 0:00:04]} 34. Rxb6 {[%emt 0:00:03]} Qc7 {[%emt 0:00:41]} 35. Qxe6 {[%emt 0:01:14]} ({Weaker is} 35. Rxe6 Kg7 36. Rb6 Be7 $18) 35... Rxd3 {[%emt 0:00:42]} (35... Rg7 $142 36. Rb5 Rd7) 36. Bh4 $18 {[%emt 0:00:40]} Qd7 {[%emt 0:03:59]} 37. Bf6+ {[%emt 0:00:37]} Bg7 {[%emt 0:00:04]} 38. Qxe5 {[%emt 0:00:15]} Bxf6 {[%emt 0:00:52]} 39. Rxf6 {[%emt 0:01:52]} Kg8 {[%emt 0:00:20]} 40. Qxc5 {[%emt 0:00:00]} Qd8 {[%emt 0:00:00]} 41. Rxf4 {[%emt 0:06:53]} 1-0

[Event "Reykjavik Open 2022"]
[Site "Reykjavik"]
[Date "2022.04.07"]
[Round "3.29"]
[White "Cramling Bellon, Anna"]
[Black "Hedman, Erik"]
[Result "0-1"]
[ECO "E92"]
[WhiteElo "2057"]
[BlackElo "2368"]
[Annotator "TA"]
[PlyCount "68"]
[EventDate "2022.04.06"]
[EventCountry "ISL"]
[SourceTitle "playchess.com"]
[Source "ChessBase"]
[SourceQuality "1"]
[TimeControl "40/5400+30:1800+30"]

{[%evp 22,68,0,-9,8,-56,-41,-82,-44,-253,-218,-298,-300,-308,-303,-306,-299,-294,-297,-364,-368,-350,-365,-353,-336,-458,-454,-500,-508,-479,-409,-541,-493,-491,-475,-610,-601,-844,-843,-920,-872,-1004,-1010,-998,-990,-987,-984,-933,-885]} 1. d4 {[%emt 0:00:05]} Nf6 {[%emt 0:00:11]} 2. c4 {[%emt 0:00:09]} g6 {[%emt 0:00:17]} 3. Nc3 {[%emt 0:00:10]} Bg7 {[%emt 0:00:05]} 4. e4 {[%emt 0:00:07]} d6 {[%emt 0:00:12]} 5. h3 {[%emt 0:00:26]} O-O {[%emt 0:00:21]} 6. Nf3 {[%emt 0:05:30]} e5 {[%emt 0:00:33]} 7. d5 {[%emt 0:00:12]} a5 {[%emt 0:00:24]} 8. Bg5 {[%emt 0:00:15]} Na6 {[%emt 0:00:32]} 9. Be2 {[%emt 0:00:21]} Qe8 {[%emt 0:00:52]} 10. g4 {[%emt 0:01:36]} Nd7 {[%emt 0:00:28]} 11. Qd2 {[%emt 0:18:34]} Ndc5 {[%emt 0:01:52]} 12. O-O-O {[%emt 0:01:00]} Bd7 {[%emt 0:07:44]} 13. Rdg1 {[%emt 0:04:14]} (13. Kb1 $11) 13... c6 $1 $15 {[%emt 0:12:39]} 14. Qe3 {[%emt 0:12:48]} Nb4 {[%emt 0:13:09]} 15. h4 $2 {[%emt 0:02:21]} (15. Bh6 $15) 15... cxd5 $19 {[%emt 0:01:53]} 16. cxd5 {[%emt 0:04:31]} f6 {[%emt 0:02:11]} 17. Bh6 {[%emt 0:01:11]} Bxh6 {[%emt 0:01:23]} 18. Qxh6 {[%emt 0:00:06]} Nbd3+ {[%emt 0:00:27]} 19. Kb1 {[%emt 0:05:12]} Nxf2 {[%emt 0:01:47]} 20. g5 {[%emt 0:23:21]} f5 {[%emt 0:30:13]} ({Don't go for} 20... Nxh1 $2 21. Rxh1 f5 22. h5 fxe4 23. Nh4 $19) ({Weaker is} 20... Nfxe4 21. Nxe4 Bf5 22. Bd3 Nxe4 23. h5 $17) 21. h5 {[%emt 0:01:37]} Nxh1 {[%emt 0:06:44]} 22. Rxh1 {[%emt 0:05:30]} Qf7 {[%emt 0:02:51]} ({Don't blunder} 22... fxe4 $2 23. Nh4 Bf5 24. Nd1 e3+ 25. Nxf5 Rxf5 26. Nxe3 $19) 23. Nh4 {[%emt 0:01:51]} Qg7 {[%emt 0:00:19]} 24. hxg6 {[%emt 0:00:08]} Qxh6 {[%emt 0:00:32]} 25. gxh6 {[%emt 0:00:05]} fxe4 {[%emt 0:02:04]} 26. Rg1 {[%emt 0:08:25]} Rf4 {[%emt 0:02:58]} 27. Ng2 {[%emt 0:00:28]} Rf6 {[%emt 0:00:25]} 28. Nh4 {[%emt 0:02:41]} hxg6 {[%emt 0:01:32]} 29. Nxg6 {[%emt 0:00:55]} Kh7 {[%emt 0:00:38]} 30. Ne7 {[%emt 0:01:03]} Rf7 {[%emt 0:00:36]} 31. Nxe4 {[%emt 0:00:32]} Nxe4 {[%emt 0:00:59]} 32. Bd3 {[%emt 0:00:03]} Rxe7 {[%emt 0:00:23]} 33. Bxe4+ {[%emt 0:00:06]} Kxh6 {[%emt 0:00:13]} 34. Rg6+ {[%emt 0:00:11]} Kh5 {[%emt 0:00:17]} 0-1

[Event "Reykjavik Open 2022"]
[Site "Reykjavik"]
[Date "2022.04.07"]
[Round "3.30"]
[White "Rosen, Eric"]
[Black "Dougherty, Michael"]
[Result "1-0"]
[ECO "B15"]
[WhiteElo "2356"]
[BlackElo "2066"]
[Annotator "TA"]
[PlyCount "46"]
[EventDate "2022.04.06"]
[EventCountry "ISL"]
[SourceTitle "playchess.com"]
[Source "ChessBase"]
[SourceQuality "1"]
[TimeControl "40/5400+30:1800+30"]

{[%evp 12,46,54,46,50,52,56,54,57,54,54,47,58,57,58,41,55,68,89,88,91,69,67,77,106,90,93,66,70,72,70,81,113,79,285,283,705]} 1. d4 {[%emt 0:00:09]} g6 {[%emt 0:00:46]} 2. e4 {[%emt 0:00:33]} Bg7 {[%emt 0:00:22]} 3. Nc3 {[%emt 0:00:18][%cal Bb1c3,Bc3e4,Be4g3][%mdl 32]} c6 {[%emt 0:01:17]} 4. Nf3 {[%emt 0:03:06]} d5 {[%emt 0:01:31]} 5. h3 {[%emt 0:01:18]} dxe4 {[%emt 0:01:54]} 6. Nxe4 {[%emt 0:00:03]} Nd7 {[%emt 0:00:13]} 7. Bc4 {[%emt 0:02:00]} Ndf6 {[%emt 0:03:33] B15: Caro-Kann: 3 Nc3: 3...g6 and 3...dxe4 4 Nxe4 Nf6 5 Nxf6+ exf6.} 8. Ng3 {[%emt 0:07:59]} Nh6 {[%emt 0:05:21]} 9. c3 {[%emt 0:03:54]} O-O {[%emt 0:02:58] White is slightly better.} 10. Ne5 {[%emt 0:02:23] [#]} Nd5 $146 {[%emt 0:07:09]} ({Predecessor:} 10... Nf5 11. Nxf5 Bxf5 12. Qb3 Nd5 13. Qxb7 Bxe5 14. dxe5 Nb6 15. Bb3 Qd3 16. Qxe7 Nd5 17. Bxd5 cxd5 {½-½ (49) Ruisinger,F (1928)-Kramar,I (2067) Augsburg 2002}) 11. O-O {[%emt 0:03:47]} Nf5 {[%emt 0:05:23]} 12. Nxf5 {[%emt 0:03:18]} Bxf5 {[%emt 0:02:04]} 13. Qf3 {[%emt 0:02:35]} Qd6 {[%emt 0:10:59]} 14. Re1 {[%emt 0:01:40]} Rae8 {[%emt 0:02:29]} 15. Bb3 {[%emt 0:01:27]} Bc8 {[%emt 0:09:58]} 16. c4 {[%emt 0:10:06]} Nf6 {[%emt 0:01:51]} 17. Be3 {[%emt 0:02:54] &Bianco is more active.} Bf5 {[%emt 0:10:15]} 18. Rad1 {[%emt 0:01:21]} Nd7 {[%emt 0:02:09]} 19. Ng4 {[%emt 0:05:08]} Bxg4 {[%emt 0:04:43]} 20. hxg4 {[%emt 0:00:27]} Qc7 {[%emt 0:04:10]} 21. Bf4 {[%emt 0:04:57]} Qb6 {[%emt 0:02:24]} 22. Qg3 {[%emt 0:05:34]} c5 $2 {[%emt 0:04:41] [#]} (22... Bxd4 $2 {[#]} 23. Rxd4 $1 (23. Bh6 e5 $11) 23... Qxd4 24. Rd1 Qxb2 25. Rxd7 $18) (22... a5 $16) 23. Ba4 $18 {[%emt 0:01:32]} Nb8 $2 {[%emt 0:00:17] Weighted Error Value: White=0.06 (flawless) /Black=0.28 (precise)} (23... Nf6 24. dxc5 Qxc5 25. Bxe8 Rxe8) 1-0

[Event "Reykjavik Open 2022"]
[Site "Reykjavik"]
[Date "2022.04.07"]
[Round "3.31"]
[White "Ruiz Buendia, Miguel"]
[Black "Heimisson, Hilmir Freyr"]
[Result "1/2-1/2"]
[ECO "B67"]
[WhiteElo "2074"]
[BlackElo "2312"]
[Annotator "TA"]
[PlyCount "144"]
[EventDate "2022.04.06"]
[EventCountry "ISL"]
[SourceTitle "playchess.com"]
[Source "ChessBase"]
[SourceQuality "1"]
[TimeControl "40/5400+30:1800+30"]

{[%evp 66,144,0,0,0,-87,-43,-25,0,0,0,0,0,0,0,0,0,0,0,0,0,0,0,0,0,0,0,0,0,0,0,0,0,0,0,0,0,0,0,0,0,0,0,0,0,0,0,0,0,0,0,0,0,0,0,0,0,0,0,0,0,0,0,0,0,0,0,0,0,0,0,0,0,0,0,-28000,-28000,-28000,-28000,-28000,-28000]} 1. e4 {[%emt 0:00:05]} c5 {[%emt 0:00:08]} 2. Nf3 {[%emt 0:00:08]} d6 {[%emt 0:00:08]} 3. d4 {[%emt 0:00:06]} cxd4 {[%emt 0:00:04]} 4. Nxd4 {[%emt 0:00:17]} Nf6 {[%emt 0:00:09]} 5. Nc3 {[%emt 0:00:04]} Nc6 {[%emt 0:00:11]} 6. Bg5 {[%emt 0:00:17]} e6 {[%emt 0:00:08]} 7. Qd2 {[%emt 0:00:09]} a6 {[%emt 0:00:08]} 8. O-O-O {[%emt 0:00:08]} Bd7 {[%emt 0:00:04]} 9. f4 {[%emt 0:00:22]} h6 {[%emt 0:02:16]} 10. Bh4 {[%emt 0:00:07]} Be7 {[%emt 0:00:44]} 11. Nf3 {[%emt 0:00:09]} g5 {[%emt 0:12:04]} 12. fxg5 {[%emt 0:06:57]} Ng4 {[%emt 0:00:15]} 13. Be2 {[%emt 0:49:18]} hxg5 {[%emt 0:10:08]} 14. Bg3 {[%emt 0:00:13]} Nge5 {[%emt 0:04:36]} 15. Kb1 {[%emt 0:07:41]} Rg8 {[%emt 0:12:20]} 16. Nxe5 {[%emt 0:03:28]} Nxe5 {[%emt 0:16:03]} 17. Bxe5 {[%emt 0:00:15]} dxe5 {[%emt 0:00:13]} 18. Bh5 {[%emt 0:00:12]} Rg7 {[%emt 0:03:08]} 19. Rhf1 {[%emt 0:00:29]} Qc7 {[%emt 0:07:33]} 20. Rxf7 {[%emt 0:00:40]} Rxf7 {[%emt 0:00:08]} 21. Bxf7+ {[%emt 0:01:14]} Kxf7 {[%emt 0:00:08]} 22. Qxd7 {[%emt 0:00:16]} Qxd7 {[%emt 0:04:02]} 23. Rxd7 {[%emt 0:00:05]} b5 {[%emt 0:03:07]} 24. Nd1 {[%emt 0:00:23]} Rh8 {[%emt 0:02:30]} 25. h3 {[%emt 0:00:25]} Rh4 {[%emt 0:00:45]} 26. Ra7 {[%emt 0:03:58]} Rxe4 {[%emt 0:02:42]} 27. Rxa6 {[%emt 0:00:10]} g4 {[%emt 0:04:01]} 28. c4 {[%emt 0:04:09]} b4 {[%emt 0:09:05]} 29. hxg4 {[%emt 0:00:53]} Rxc4 {[%emt 0:01:08]} 30. Ne3 {[%emt 0:07:52]} Re4 {[%emt 0:00:35]} 31. Nc2 {[%emt 0:00:26]} Rf4 {[%emt 0:03:11]} 32. Kc1 {[%emt 0:00:58]} Bg5 {[%emt 0:02:30]} 33. Kd1 {[%emt 0:00:37]} Rf2 {[%emt 0:01:53]} 34. Nxb4 {[%emt 0:00:55]} e4 {[%emt 0:00:07]} 35. Ra3 {[%emt 0:06:51]} (35. g3 $11) 35... Rd2+ {[%emt 0:00:28]} ({Reject} 35... Rxb2 $6 36. Nc2 $11) 36. Ke1 {[%emt 0:00:13]} Rxb2 {[%emt 0:00:11]} 37. Nc6 {[%emt 0:01:11]} Rxg2 {[%emt 0:01:05]} 38. Ra4 {[%emt 0:00:39]} Bh4+ {[%emt 0:00:45]} 39. Kd1 {[%emt 0:00:53]} e3 {[%emt 0:00:32]} 40. Re4 {[%emt 0:00:00]} Rd2+ {[%emt 0:00:00]} 41. Kc1 {[%emt 0:00:52]} Rf2 {[%emt 0:15:43]} (41... Bg5 $5 42. Ne5+ Kf6 $11) 42. Kd1 {[%emt 0:04:01]} Rd2+ {[%emt 0:03:49]} 43. Kc1 {[%emt 0:00:06]} Rxa2 {[%emt 0:01:31]} (43... Bg5 $5 44. Ne5+ Kf6 $11) 44. Kd1 {[%emt 0:05:34]} Rd2+ {[%emt 0:01:37]} 45. Kc1 {[%emt 0:00:11]} Rf2 {[%emt 0:02:23]} 46. Kd1 {[%emt 0:00:16]} Rd2+ {[%emt 0:01:17]} 47. Kc1 {[%emt 0:00:07]} Bf2 {[%emt 0:00:18]} 48. Ne5+ {[%emt 0:03:32]} Kf6 {[%emt 0:00:38]} 49. Nc4 {[%emt 0:01:06]} Re2 {[%emt 0:03:40]} 50. Kd1 {[%emt 0:01:34]} Re1+ {[%emt 0:01:12]} 51. Kc2 {[%emt 0:00:04]} Rg1 {[%emt 0:01:59]} 52. Kd3 {[%emt 0:01:17]} Rg3 {[%emt 0:00:43]} 53. Ke2 {[%emt 0:01:12]} Ke7 {[%emt 0:01:11]} 54. Kd3 {[%emt 0:08:20]} Bg1 {[%emt 0:00:24]} 55. Ke2 {[%emt 0:00:30]} Kf6 {[%emt 0:01:12]} 56. Kd3 {[%emt 0:01:13]} Kf7 {[%emt 0:00:59]} 57. Ke2 {[%emt 0:00:57]} Ke7 {[%emt 0:00:00]} 58. Kf1 {[%emt 0:01:01]} Kd7 {[%emt 0:00:25]} 59. Ke2 {[%emt 0:00:15]} Kc6 {[%emt 0:00:47]} 60. Nxe3 {[%emt 0:00:23]} Kd6 {[%emt 0:00:45]} 61. Nf1 {[%emt 0:00:57]} Rg2+ {[%emt 0:00:16]} 62. Kd3 {[%emt 0:00:28]} e5 {[%emt 0:00:42]} 63. Ra4 {[%emt 0:01:24]} Bd4 {[%emt 0:00:23]} 64. Ra6+ {[%emt 0:01:49]} Ke7 {[%emt 0:00:02]} 65. Nd2 {[%emt 0:02:39]} Rg3+ {[%emt 0:00:15]} 66. Ke4 {[%emt 0:00:27]} Rxg4+ {[%emt 0:00:08]} 67. Kd5 {[%emt 0:00:24]} Rg2 {[%emt 0:01:25]} 68. Nf3 {[%emt 0:01:09]} Bc3 {[%emt 0:00:27]} 69. Re6+ {[%emt 0:01:53]} Kf8 $2 {[%emt 0:00:38][%mdl 8192]} (69... Kf7 $11) 70. Nxe5 {[%emt 0:00:17]} Rg5 {[%emt 0:00:23]} 71. Ke4 {[%emt 0:00:18]} Rxe5+ {[%emt 0:00:05]} 72. Rxe5 {[%emt 0:00:04]} Bxe5 {[%emt 0:00:06]} 1/2-1/2

[Event "Reykjavik Open 2022"]
[Site "Reykjavik"]
[Date "2022.04.07"]
[Round "3.32"]
[White "White, Nigel"]
[Black "Lim, Zhuo Ren"]
[Result "1/2-1/2"]
[ECO "B99"]
[WhiteElo "1997"]
[BlackElo "2317"]
[Annotator "TA"]
[PlyCount "43"]
[EventDate "2022.04.06"]
[EventCountry "ISL"]
[SourceTitle "playchess.com"]
[Source "ChessBase"]
[SourceQuality "1"]
[TimeControl "40/5400+30:1800+30"]

{[%evp 22,43,42,46,55,37,35,36,43,50,44,37,77,47,72,58,73,15,11,8,8,10,12,14]} 1. e4 {[%emt 0:00:08]} c5 {[%emt 0:00:21]} 2. Nf3 {[%emt 0:00:06]} d6 {[%emt 0:00:13]} 3. d4 {[%emt 0:00:05]} cxd4 {[%emt 0:00:07]} 4. Nxd4 {[%emt 0:00:03]} Nf6 {[%emt 0:00:07]} 5. Nc3 {[%emt 0:00:04]} a6 {[%emt 0:00:10]} 6. Bg5 {[%emt 0:00:06]} e6 {[%emt 0:00:20]} 7. f4 {[%emt 0:00:20]} Be7 {[%emt 0:03:00]} 8. Qf3 {[%emt 0:00:42]} Qc7 {[%emt 0:00:17]} 9. O-O-O {[%emt 0:00:21]} Nbd7 {[%emt 0:00:28]} 10. g4 {[%emt 0:00:18][%cal Bg2g4,Bg4g5][%mdl 32]} h6 {[%emt 0:01:27]} 11. Bxf6 {[%emt 0:00:13]} Bxf6 {[%emt 0:00:06]} 12. h4 {[%emt 0:00:09]} Nb6 $1 {[%emt 0:00:28][%mdl 4] is recently more successful than 12...Qb6. B99: Sicilian Najdorf: 6 Bg5 e6 7 f4 Be7 8 Qf3 Qc7 9 0-0-0 Nbd7.} 13. g5 {[%emt 0:00:21]} Bxd4 {[%emt 0:02:38]} 14. Rxd4 {[%emt 0:00:50]} Qc5 {[%emt 0:00:15] White is slightly better.} 15. Rd2 {[%emt 0:00:08]} Bd7 {[%emt 0:02:13]} 16. Be2 {[%emt 0:00:17]} O-O-O {[%emt 0:01:02] [#]} 17. gxh6 $146 {[%emt 0:10:26]} ({Predecessor:} 17. Rhd1 Bc6 18. a3 Na4 19. Nxa4 Bxa4 20. Bd3 Bc6 21. Qg3 hxg5 22. fxg5 Qe5 23. Qg4 {0-1 (35) Pichot,A (2625)-Leiva Rodriguez,J (2405) Chess.com INT 2022}) 17... gxh6 {[%emt 0:02:35]} 18. Rhd1 {[%emt 0:01:15]} Bc6 {[%emt 0:02:55]} 19. f5 {[%emt 0:04:16]} (19. Rd4 $16 {Strongly threatening b4.} d5 20. Qd3) 19... exf5 $11 {[%emt 0:07:00] The position is equal.} 20. Qxf5+ {[%emt 0:00:43]} Qxf5 {[%emt 0:00:12]} 21. exf5 {[%emt 0:00:16]} Kc7 {[%emt 0:00:20]} 22. Rd4 {[%emt 0:10:29] Weighted Error Value: White=0.21 (precise) /Black=0.06 (flawless)} 1/2-1/2

[Event "Reykjavik Open 2022"]
[Site "Reykjavik"]
[Date "2022.04.07"]
[Round "3.33"]
[White "Sarkar, Justin"]
[Black "Briem, Benedikt"]
[Result "1/2-1/2"]
[ECO "D45"]
[WhiteElo "2314"]
[BlackElo "2079"]
[Annotator "TA"]
[PlyCount "70"]
[EventDate "2022.04.06"]
[EventCountry "ISL"]
[SourceTitle "playchess.com"]
[Source "ChessBase"]
[SourceQuality "1"]
[TimeControl "40/5400+30:1800+30"]

{[%evp 27,70,-90,-37,-69,-77,-80,14,30,21,24,28,-3,0,-3,-2,-11,59,-24,-37,-211,-207,-212,-214,-190,-59,-63,-64,-70,-66,-69,-53,-48,-24,-35,-19,-22,-19,-38,-19,-77,-46,-46,-46,-42,-13]} 1. d4 {[%emt 0:00:13]} d5 {[%emt 0:00:03]} 2. c4 {[%emt 0:00:09]} c6 {[%emt 0:00:05]} 3. Nf3 {[%emt 0:00:26]} Nf6 {[%emt 0:00:08]} 4. Nc3 {[%emt 0:01:04]} e6 {[%emt 0:00:07]} 5. e3 {[%emt 0:01:20]} Nbd7 {[%emt 0:00:12]} 6. Qc2 {[%emt 0:00:14]} Bd6 {[%emt 0:00:27]} 7. g4 {[%emt 0:02:53]} h6 {[%emt 0:00:26]} 8. Rg1 {[%emt 0:01:33]} e5 {[%emt 0:01:26]} 9. cxd5 {[%emt 0:00:16]} cxd5 {[%emt 0:00:29]} 10. Nb5 {[%emt 0:01:44]} Bb8 {[%emt 0:04:18]} 11. Bd2 {[%emt 0:00:14]} e4 {[%emt 0:16:59]} 12. Rc1 {[%emt 0:00:56]} O-O {[%emt 0:15:05]} 13. Bb4 {[%emt 0:00:36]} Re8 {[%emt 0:01:16]} 14. Nd2 {[%emt 0:05:30]} Nb6 {[%emt 0:14:19]} ({Black should try} 14... Bxh2 $17 15. Rg2 Bb8) 15. Nc7 {[%emt 0:21:06]} Bxc7 {[%emt 0:06:23]} 16. Qxc7 {[%emt 0:00:03]} Qxc7 {[%emt 0:05:52]} (16... Bxg4 $17 {Threatens to win with ...Rc8.} 17. Nb3 (17. Qxb7 Na4 $17) 17... Rc8 18. Qxd8 (18. Qxb7 Nc4 $17) 18... Rxc1+ 19. Nxc1 Rxd8) 17. Rxc7 $11 {[%emt 0:00:04]} Be6 {[%emt 0:00:40]} 18. Rxb7 {[%emt 0:08:51]} Rec8 {[%emt 0:04:44]} 19. Bc5 {[%emt 0:01:43]} (19. Kd1 {keeps more tension.} Na4 20. Ba3 Bxg4+ 21. Be2) 19... Na4 {[%emt 0:02:15]} 20. Nb3 {[%emt 0:37:35]} ({But not} 20. Rxa7 $2 Rxa7 21. Bxa7 Rc1+ 22. Ke2 Bxg4+ 23. Rxg4 Nxg4 $19) 20... Nxg4 {[%emt 0:01:30]} 21. Rg2 {[%emt 0:00:28] [#]} Nf6 {[%emt 0:07:11]} ({Black should play} 21... Ne5 $1 $11) 22. Ba6 {[%emt 0:01:01]} (22. Be7 $1 $14 Ne8 23. Nc5) 22... Nxb2 $11 {[%emt 0:02:44]} 23. f4 $2 {[%emt 0:02:42]} ({Better is} 23. Be7 $15 Ne8 24. Nc5) 23... Nc4 $19 {[%emt 0:01:56]} 24. Bxc4 {[%emt 0:01:31]} dxc4 {[%emt 0:00:02]} 25. Na5 {[%emt 0:00:07]} Nd5 {[%emt 0:01:44]} (25... c3 $19 {And now ...Rab8 would win.} 26. Rc2 Nd5) 26. Nxc4 $15 {[%emt 0:05:04]} Nxf4 {[%emt 0:02:13]} 27. exf4 {[%emt 0:00:04]} Bxc4 {[%emt 0:00:07]} 28. Rgb2 {[%emt 0:02:14]} a6 {[%emt 0:03:40]} 29. Kd2 {[%emt 0:01:15]} Bd5 {[%emt 0:01:01]} 30. Rd7 {[%emt 0:00:43]} Rd8 {[%emt 0:01:43]} 31. Rxd8+ $1 {[%emt 0:01:00]} Rxd8 {[%emt 0:00:02]} 32. a4 {[%emt 0:00:17]} Rd7 {[%emt 0:02:18]} 33. Ke3 {[%emt 0:02:40]} (33. Rb6 $11 {remains equal.}) 33... Rb7 {[%emt 0:02:09]} 34. Rxb7 {[%emt 0:00:30]} Bxb7 {[%emt 0:00:06]} 35. f5 {[%emt 0:00:29]} f6 {[%emt 0:02:52]} 1/2-1/2